fUST/lending_fUST_20240205
["ID","MTS","AMOUNT","RATE_DAILY","PERIOD"]
[313313623,1707141044861,-500.0,0.00024931,2]
[313313625,1707141044871,-500.0,0.00024931,2]
[313313626,1707141044879,-500.0,0.00024931,2]
[313313628,1707141044889,-500.0,0.00024931,2]
[313313630,1707141044898,-500.0,0.00024931,2]
[313313633,1707141044907,-500.0,0.00024931,2]
[313313634,1707141044917,-500.0,0.00024931,2]
[313313636,1707141044926,-620.22066376,0.00024954,2]
[313313639,1707141044936,-176.23944365,0.00024998,2]
[313313641,1707141044945,-1743.33360655,0.00024998,2]
[313313642,1707141044954,-151.0,0.00024999,2]
[313313644,1707141044964,-151.0,0.00024999,2]
[313313646,1707141044973,-344.6705418,0.00024999,2]
[313313649,1707141044982,-500.0,0.00024999,2]
[313313651,1707141044991,-260.1569415,0.00024999,2]
[313313653,1707141045001,-570.96665213,0.00024999,2]
[313313655,1707141045009,-241.03340625,0.00024999,2]
[313313656,1707141045018,-169.66332677,0.00024999,2]
[313313659,1707141045028,-414.94501911,0.00024999,2]
[313313660,1707141045037,-1858.48878717,0.00024999,2]
[313313663,1707141045047,-300.1600001,0.00024999,2]
[313313665,1707141045060,-6297.30004496,0.00025,2]
[313313667,1707141045069,-335.39772833,0.00025,2]
[313313668,1707141045078,-11505.35998067,0.00025,2]
[313313670,1707141045088,-171.393807,0.00025,2]
[313313672,1707141045099,-1651.31078755,0.00025001,2]
[313313674,1707141045108,-234.9472934,0.00025001,2]
[313313676,1707141045117,-524.09,0.00025203,2]
[313313679,1707141045127,-500.0,0.00025203,2]
[313313680,1707141045138,-500.0,0.00025203,2]
[313313682,1707141045147,-500.0,0.00025203,2]
[313313684,1707141045156,-1157.03,0.00025203,2]
[313313686,1707141045165,-500.0,0.00025203,2]
[313313688,1707141045175,-397.8308514,0.00025204,2]
[313313691,1707141045185,-500.0,0.00025205,2]
[313313693,1707141045194,-500.0,0.00025205,2]
[313313695,1707141045204,-949.46,0.00025205,2]
[313313697,1707141045214,-938.38,0.00025205,2]
[313313699,1707141045223,-2886.16,0.00025205,2]
[313313700,1707141045233,-1609.83,0.00025205,2]
[313313703,1707141045243,-500.0,0.00025205,2]
[313313705,1707141045252,-1120.26,0.00025205,2]
[313313706,1707141045261,-4159.28,0.00025205,2]
[313313709,1707141045271,-571.35,0.00025205,2]
[313313710,1707141045280,-500.0,0.00025205,2]
[313313712,1707141045289,-500.0,0.00025205,2]
[313313714,1707141045299,-60.35458924,0.00025205,2]
[313318162,1707142238588,-155.01860223,0.00023108,2]
[313318163,1707142238598,-1188.72302502,0.00023115,2]
[313318172,1707142241658,-12.4711165,0.00023115,2]
[313318173,1707142241667,-1592.02428153,0.00023116,2]
[313318174,1707142241678,-74.70690528,0.00023116,2]
[313318175,1707142241691,-1269.03472197,0.00023116,2]
[313318176,1707142241700,-2629.54489125,0.00023118,2]
[313318177,1707142241710,-2032.089883,0.00023118,2]
[313318178,1707142241719,-468.91431078,0.00023118,2]
[313318221,1707142243481,-1697.14999998,0.00023118,2]
[313318223,1707142243537,-251.70499814,0.00023118,2]
[313318224,1707142243547,-200.0,0.00024273,7]
[313318225,1707142243557,-453.83392897,0.00024657,2]
[313318226,1707142243566,-269.80964262,0.0002483,2]
[313318227,1707142243576,-415.1274886,0.00024892,2]
[313318228,1707142243590,-204.88354459,0.00024892,2]
[313318230,1707142243599,-312.60141475,0.0002493,2]
[313318254,1707142246533,-187.39858525,0.0002493,2]
[313318255,1707142246543,-285.15628031,0.0002493,2]
[313318349,1707143432603,-323.86980983,0.00022538,2]
[313318351,1707143432613,-155.01860223,0.00022539,2]
[313318352,1707143432622,-1586.31930013,0.0002254,2]
[313318354,1707143432631,-5000.0,0.00023118,2]
[313318356,1707143432640,-657.38622281,0.00023118,2]
[313318358,1707143432649,-540.8917819,0.00023118,2]
[313318359,1707143432659,-572.22312066,0.00023118,2]
[313318360,1707143432668,-2314.3496712,0.00023404,2]
[313318361,1707143432677,-398.5252971,0.00023405,2]
[313318362,1707143432687,-2795.8496359,0.00023516,2]
[313318363,1707143432696,-4437.8041386,0.00023556,2]
[313318364,1707143432705,-35.77128715,0.00023693,2]
[313318371,1707143438748,-662.09073395,0.00023693,2]
[313318373,1707143438759,-200.0,0.00024273,7]
[313318374,1707143438770,-236.08343731,0.000248,2]
[313318375,1707143438779,-151.55215445,0.0002483,2]
[313318376,1707143438789,-2161.14751199,0.0002485,2]
[313318377,1707143438864,1500.0,0.00029,30]
[313318447,1707143446588,-230.576275,0.00023929,2]
[313318448,1707143446598,-6510.91581887,0.0002485,2]
[313318449,1707143446607,-153.0,0.000249,2]
[313318450,1707143446617,-3252.21461977,0.0002493,2]
[313318451,1707143446626,-505.08531389,0.0002493,2]
[313318452,1707143446635,-574.18868617,0.0002493,2]
[313318453,1707143446644,-1651.31078755,0.0002493,2]
[313318454,1707143446654,-213.50403566,0.0002493,2]
[313318455,1707143446663,-500.0,0.00024996,2]
[313318456,1707143446672,-155.01860226,0.00024996,2]
[313318458,1707143446682,-175.55375997,0.00024996,2]
[313318460,1707143446691,-155.0294556,0.00024996,2]
[313318461,1707143446700,-611.43798565,0.00024996,2]
[313318463,1707143446710,-299.47308076,0.00024996,2]
[313318464,1707143446719,-1043.41,0.00024997,2]
[313318466,1707143446728,-500.0,0.00024997,2]
[313318468,1707143446737,-500.0,0.00024998,2]
[313318469,1707143446747,-500.0,0.00024998,2]
[313318471,1707143446757,-500.0,0.00024998,2]
[313318473,1707143446767,-500.0,0.00024998,2]
[313318474,1707143446778,-500.0,0.00024998,2]
[313318475,1707143446787,-500.0,0.00024998,2]
[313318476,1707143446796,-315.79568667,0.00024998,2]
[313318477,1707143446806,-884.34,0.00024998,2]
[313318478,1707143446815,-500.0,0.00024998,2]
[313318479,1707143446825,-2803.46,0.00024998,2]
[313318480,1707143446834,-387.8,0.00024998,2]
[313318481,1707143446843,-500.0,0.00024998,2]
[313318482,1707143446854,-500.0,0.00024998,2]
[313318483,1707143446865,-500.0,0.00024998,2]
[313318484,1707143446874,-500.0,0.00024998,2]
[313318485,1707143446883,-426.42029714,0.00024998,2]
[313318486,1707143446893,-500.0,0.00024998,2]
[313318487,1707143446902,-540.04666505,0.00024998,2]
[313318488,1707143446912,-535.37,0.00024998,2]
[313318489,1707143446921,-531.14,0.00024998,2]
[313318490,1707143446930,-500.0,0.00024998,2]
[313318491,1707143446940,-500.0,0.00024998,2]
[313318492,1707143446949,-500.0,0.00024998,2]
[313318493,1707143446958,-500.0,0.00024998,2]
[313318494,1707143446968,-500.0,0.00024998,2]
[313318495,1707143446978,-500.0,0.00024998,2]
[313318496,1707143446987,-500.0,0.00024998,2]
[313318497,1707143446997,-500.0,0.00024998,2]
[313318498,1707143447006,-500.0,0.00024998,2]
[313318499,1707143447015,-500.0,0.00024998,2]
[313318500,1707143447024,-927.85,0.00024998,2]
[313318501,1707143447033,-1327.36,0.00024998,2]
[313318502,1707143447043,-500.0,0.00024999,2]
[313318503,1707143447052,-500.0,0.00024999,2]
[313318504,1707143447061,-500.0,0.00024999,2]
[313318505,1707143447071,-500.0,0.00024999,2]
[313318506,1707143447081,-500.0,0.00024999,2]
[313318507,1707143447090,-316.44854787,0.00024999,2]
[313318508,1707143447099,-528.05649788,0.00024999,2]
[313318509,1707143447109,-550.66788078,0.00024999,2]
[313318510,1707143447118,-156.5099535,0.00025,2]
[313318511,1707143447128,-153.0,0.00025,2]
[313318512,1707143447137,-335.39772833,0.00025,2]
[313318513,1707143447146,-6297.30004496,0.00025,2]
[313318514,1707143447155,-151.0,0.0002519,2]
[313318515,1707143447164,-2455.08,0.00025191,3]
[313318516,1707143447174,-4626.2,0.00025201,2]
[313318517,1707143447183,-500.0,0.00025201,2]
[313318518,1707143447193,-151.0,0.00025201,2]
[313318519,1707143447202,-151.0,0.00025203,2]
[313318520,1707143447211,-765.76707638,0.00025205,2]
[313318521,1707143447220,-155.01705188,0.00025205,2]
[313318522,1707143447230,-153.873444,0.00025205,2]
[313318523,1707143447239,-153.0,0.00025205,2]
[313318524,1707143447248,-154.000139,0.00025205,2]
[313318525,1707143447256,-399.4848484,0.00025205,2]
[313318526,1707143447265,-306.8078246,0.00025205,2]
[313318527,1707143447275,-306.542544,0.00025205,2]
[313318528,1707143447284,-153.0,0.00025205,2]
[313318529,1707143447293,-153.0,0.00025205,2]
[313318530,1707143447302,-3374.15,0.00025262,3]
[313318531,1707143447311,-1043.41,0.00025271,2]
[313318532,1707143447321,-500.0,0.00025272,2]
[313318533,1707143447330,-884.34,0.00025272,2]
[313318534,1707143447339,-500.0,0.00025272,2]
[313318535,1707143447348,-2635.92819331,0.00025272,2]
[313318536,1707143447423,-167.53180669,0.00025272,2]
[313318537,1707143447432,-500.0,0.00025272,2]
[313318538,1707143447441,-452.68648476,0.00025272,2]
[313318539,1707143447451,-500.0,0.00025272,2]
[313318540,1707143447460,-535.37,0.00025272,2]
[313318541,1707143447470,-531.14,0.00025272,2]
[313318542,1707143447479,-500.0,0.00025272,2]
[313318543,1707143447488,-469.99318085,0.00025272,2]
[313318544,1707143447501,-30.00681915,0.00025272,2]
[313318545,1707143447510,-500.0,0.00025272,2]
[313318546,1707143447519,-500.0,0.00025272,2]
[313318547,1707143447528,-468.43072968,0.00025272,2]
[313318549,1707144343231,200000.0,0.00029,30]
[313318618,1707144637968,-1997.19860237,0.00019368,2]
[313318619,1707144637981,-81896.77520827,0.00019368,2]
[313318620,1707144637990,-35629.9764433,0.00019369,2]
[313318621,1707144638000,-3435.38,0.00019405,3]
[313318622,1707144638010,-155.0294556,0.00019414,2]
[313318623,1707144638019,-18947.68100356,0.00019415,2]
[313318624,1707144638028,-19910.76123758,0.00019415,2]
[313318625,1707144638038,-5833.67,0.00019416,2]
[313318626,1707144638047,-334.74489033,0.00020325,2]
[313318627,1707144638057,-151.55215444,0.00020338,2]
[313318628,1707144638067,-197.99707984,0.00020822,2]
[313318629,1707144638076,-500.0,0.00020822,2]
[313318630,1707144638085,-500.0,0.00020822,2]
[313318631,1707144638094,-476.32961329,0.00020822,2]
[313318632,1707144638104,-200.0,0.00021459,7]
[313318633,1707144638116,-151.0,0.00023092,2]
[313318634,1707144638126,-285.23502115,0.00023118,2]
[313318635,1707144638135,-5000.0,0.00023547,5]
[313318636,1707144638144,-334.74489026,0.0002355,2]
[313318637,1707144638154,-280.0,0.00023605,7]
[313318638,1707144638163,-151.0,0.00024278,2]
[313318639,1707144638172,-2325.94475639,0.00024278,2]
[313318640,1707144638181,-168.546209,0.00024281,2]
[313318641,1707144638191,-500.0,0.00024657,2]
[313318642,1707144638201,-166.386198,0.00024657,2]
[313318643,1707144638210,-1917.58,0.00024657,2]
[313318644,1707144638220,-500.0,0.00024657,2]
[313318645,1707144638231,-7149.75,0.00024657,2]
[313318646,1707144638240,-995.99,0.00024657,2]
[313318647,1707144638250,-1343.47,0.00024657,2]
[313318648,1707144638259,-3352.27,0.00024657,2]
[313318649,1707144638269,-569.11,0.00024657,2]
[313318650,1707144638281,-500.0,0.00024657,2]
[313318651,1707144638290,-521.9,0.00024657,2]
[313318652,1707144638299,-624.29,0.00024657,2]
[313318653,1707144638309,-474.96707827,0.00024657,2]
[313318654,1707144638318,-500.0,0.00024657,2]
[313318655,1707144638328,-1319.76,0.00024657,2]
[313318656,1707144638338,-737.92,0.00024657,2]
[313318657,1707144638348,-500.0,0.00024657,2]
[313318658,1707144638358,-500.0,0.00024657,2]
[313318659,1707144638368,-500.0,0.00024657,2]
[313318660,1707144638376,-152.461569,0.00024657,2]
[313318661,1707144638386,-152.461569,0.00024657,2]
[313318662,1707144638395,-152.461569,0.00024657,2]
[313318663,1707144638405,-152.461569,0.00024657,2]
[313318664,1707144638415,-500.0,0.00024657,2]
[313318665,1707144638425,-500.0,0.00024657,2]
[313318666,1707144638435,-1189.62,0.00024657,2]
[313318667,1707144638446,-167.69,0.00024657,2]
[313318668,1707144638455,-151.0,0.00024685,2]
[313318669,1707144638464,-300.0,0.0002493,2]
[313318670,1707144638476,-500.0,0.00024931,2]
[313318671,1707144638485,-1917.58,0.00024931,2]
[313318672,1707144638494,-500.0,0.00024931,2]
[313318673,1707144638503,-7149.75,0.00024931,2]
[313318674,1707144638512,-995.99,0.00024931,2]
[313318675,1707144638521,-1343.47,0.00024931,2]
[313318676,1707144638530,-3352.27,0.00024931,2]
[313318677,1707144638539,-569.11,0.00024931,2]
[313318678,1707144638549,-521.9,0.00024931,2]
[313318679,1707144638558,-624.29,0.00024931,2]
[313318680,1707144638567,-500.0,0.00024931,2]
[313318681,1707144638577,-1319.76,0.00024931,2]
[313318682,1707144638586,-737.92,0.00024931,2]
[313318683,1707144638595,-500.0,0.00024931,2]
[313318684,1707144638604,-500.0,0.00024931,2]
[313318685,1707144638613,-500.0,0.00024931,2]
[313318686,1707144638623,-152.461569,0.00024931,2]
[313318687,1707144638632,-152.461569,0.00024931,2]
[313318688,1707144638641,-152.461569,0.00024931,2]
[313318689,1707144638651,-152.461569,0.00024931,2]
[313318690,1707144638660,-500.0,0.00024931,2]
[313318691,1707144638669,-500.0,0.00024931,2]
[313318692,1707144638678,-1189.62,0.00024931,2]
[313318693,1707144638688,-623.07448613,0.00024993,2]
[313318694,1707144638697,-200.99449137,0.00024993,2]
[313318695,1707144638706,-294.36154802,0.00024993,2]
[313318696,1707144638715,-156.38475072,0.00024993,2]
[313318697,1707144638726,-435.83763613,0.00024994,2]
[313318698,1707144638735,-155.67700042,0.00024994,2]
[313318699,1707144638744,-238.71935115,0.00024995,2]
[313318700,1707144638753,-176.70010518,0.00024995,2]
[313318701,1707144638762,-37034.1990655,0.00024996,2]
[313318702,1707144638771,-152.461569,0.00024996,2]
[313318703,1707144638780,-152.461569,0.00024996,2]
[313318704,1707144638789,-500.0,0.00024997,2]
[313318705,1707144638798,-500.0,0.00024997,2]
[313318706,1707144638807,-500.0,0.00024997,2]
[313318707,1707144638816,-500.0,0.00024997,2]
[313318708,1707144638825,-1961.88,0.00024997,2]
[313318709,1707144638835,-335.39772833,0.00025,2]
[313318710,1707144638844,-6297.30004496,0.00025,2]
[313318711,1707144638853,-1583.44473922,0.00025,2]
[313318712,1707144638862,-580.52162572,0.00025205,2]
[313318713,1707144638871,-1917.58,0.00025205,2]
[313318714,1707144638880,-500.0,0.00025205,2]
[313318715,1707144638889,-7149.75,0.00025205,2]
[313318716,1707144638898,-995.99,0.00025205,2]
[313318717,1707144638907,-1343.47,0.00025205,2]
[313318718,1707144638916,-3352.27,0.00025205,2]
[313318719,1707144638926,-569.11,0.00025205,2]
[313318720,1707144638935,-521.9,0.00025205,2]
[313318721,1707144638944,-624.29,0.00025205,2]
[313318722,1707144638958,-500.0,0.00025205,2]
[313318723,1707144638967,-1319.76,0.00025205,2]
[313318724,1707144638976,-737.92,0.00025205,2]
[313318725,1707144638985,-500.0,0.00025205,2]
[313318726,1707144638994,-500.0,0.00025205,2]
[313318727,1707144639003,-500.0,0.00025205,2]
[313318728,1707144639013,-152.461569,0.00025205,2]
[313318729,1707144639023,-152.461569,0.00025205,2]
[313318730,1707144639033,-152.461569,0.00025205,2]
[313318731,1707144639043,-152.461569,0.00025205,2]
[313318732,1707144639052,-500.0,0.00025205,2]
[313318733,1707144639062,-500.0,0.00025205,2]
[313318734,1707144639071,-1189.62,0.00025205,2]
[313318735,1707144639080,-500.0,0.00025271,2]
[313318736,1707144639090,-500.0,0.00025271,2]
[313318737,1707144639100,-500.0,0.00025271,2]
[313318738,1707144639112,-500.0,0.00025271,2]
[313318739,1707144639121,-1961.88,0.00025271,2]
[313318740,1707144639130,-355.22775851,0.00025272,2]
[313318741,1707144639140,-155.02046238,0.00025272,2]
[313318742,1707144639150,-1012.27629002,0.00025272,2]
[313318743,1707144639160,-1129.72846753,0.00025272,2]
[313318744,1707144639260,-1917.58,0.00025479,2]
[313318745,1707144639270,-500.0,0.00025479,2]
[313318746,1707144639282,-7149.75,0.00025479,2]
[313318747,1707144639291,-995.99,0.00025479,2]
[313318748,1707144639305,-1343.47,0.00025479,2]
[313318749,1707144639347,-3352.27,0.00025479,2]
[313318750,1707144639356,-569.11,0.00025479,2]
[313318751,1707144639365,-521.9,0.00025479,2]
[313318752,1707144639374,-624.29,0.00025479,2]
[313318753,1707144639384,-500.0,0.00025479,2]
[313318754,1707144639396,-1319.76,0.00025479,2]
[313318755,1707144639405,-737.92,0.00025479,2]
[313318756,1707144639414,-291.69030785,0.00025479,2]
[313318757,1707144639424,-500.0,0.00025479,2]
[313318758,1707144639433,-500.0,0.00025479,2]
[313318759,1707144639442,-152.461569,0.00025479,2]
[313318760,1707144639452,-152.461569,0.00025479,2]
[313318761,1707144639461,-152.461569,0.00025479,2]
[313318762,1707144639470,-152.461569,0.00025479,2]
[313318763,1707144639479,-500.0,0.00025479,2]
[313318764,1707144639488,-500.0,0.00025479,2]
[313318765,1707144639497,-1189.62,0.00025479,2]
[313318766,1707144639506,-500.0,0.00025545,2]
[313318767,1707144639515,-500.0,0.00025545,2]
[313318768,1707144639525,-500.0,0.00025545,2]
[313318769,1707144639534,-500.0,0.00025545,2]
[313318770,1707144639543,-1961.88,0.00025545,2]
[313318771,1707144639552,-1302.26361553,0.00025653,2]
[313318772,1707144639561,-3765.68909218,0.0002575,2]
[313318773,1707144639570,-1857.66500198,0.0002575,2]
[313318774,1707144639579,-237.64669267,0.0002575,2]
[313318775,1707144639588,-1917.58,0.00025753,2]
[313318776,1707144639597,-500.0,0.00025753,2]
[313318777,1707144639607,-7149.75,0.00025753,2]
[313318778,1707144639615,-995.99,0.00025753,2]
[313318779,1707144639625,-1343.47,0.00025753,2]
[313318780,1707144639634,-3352.27,0.00025753,2]
[313318781,1707144639643,-569.11,0.00025753,2]
[313318782,1707144639652,-521.9,0.00025753,2]
[313318783,1707144639661,-624.29,0.00025753,2]
[313318784,1707144639670,-500.0,0.00025753,2]
[313318785,1707144639679,-1319.76,0.00025753,2]
[313318786,1707144639689,-737.92,0.00025753,2]
[313318787,1707144639698,-500.0,0.00025753,2]
[313318788,1707144639707,-500.0,0.00025753,2]
[313318789,1707144639716,-152.461569,0.00025753,2]
[313318790,1707144639726,-152.461576,0.00025753,2]
[313318791,1707144639735,-500.0,0.00025753,2]
[313318792,1707144639744,-500.0,0.00025753,2]
[313318793,1707144639753,-1189.62,0.00025753,2]
[313318794,1707144639762,-500.0,0.00025819,2]
[313318795,1707144639771,-500.0,0.00025819,2]
[313318796,1707144639780,-500.0,0.00025819,2]
[313318797,1707144639789,-500.0,0.00025819,2]
[313318798,1707144639798,-1961.88,0.00025819,2]
[313318799,1707144639808,-348.90679775,0.00025925,2]
[313318800,1707144639817,-332.07828629,0.00025925,2]
[313318801,1707144639826,-155.01860223,0.00025925,2]
[313318802,1707144639835,-391.0,0.00025965,7]
[313318803,1707144639844,-264.19538376,0.00026025,2]
[313318804,1707144639853,-381.96379396,0.00026025,2]
[313318805,1707144639862,-1771.1328817,0.00026025,2]
[313318806,1707144639871,-1917.58,0.00026027,2]
[313318808,1707144639880,-500.0,0.00026027,2]
[313318810,1707144639889,-7149.75,0.00026027,2]
[313318812,1707144639898,-995.99,0.00026027,2]
[313318813,1707144639907,-1343.47,0.00026027,2]
[313318815,1707144639916,-3352.27,0.00026027,2]
[313318817,1707144639924,-569.11,0.00026027,2]
[313318819,1707144639934,-521.9,0.00026027,2]
[313318822,1707144639943,-624.29,0.00026027,2]
[313318825,1707144639952,-365.50512995,0.00026027,2]
[313318828,1707144639962,-1319.76,0.00026027,2]
[313318831,1707144639971,-737.92,0.00026027,2]
[313318834,1707144639980,-500.0,0.00026027,2]
[313318837,1707144639989,-500.0,0.00026027,2]
[313318840,1707144639998,-500.0,0.00026027,2]
[313318841,1707144640008,-500.0,0.00026027,2]
[313318842,1707144640017,-1189.62,0.00026027,2]
[313318843,1707144640026,-500.0,0.00026093,2]
[313318844,1707144640035,-500.0,0.00026093,2]
[313318845,1707144640045,-500.0,0.00026093,2]
[313318846,1707144640054,-360.39319067,0.00026093,2]
[313318847,1707144640063,-1961.88,0.00026093,2]
[313318848,1707144640073,-151.0,0.00026278,2]
[313318849,1707144640082,-1917.58,0.00026301,2]
[313318850,1707144640091,-451.71313205,0.00026301,2]
[313318851,1707144640103,-7149.75,0.00026301,2]
[313318852,1707144640113,-995.99,0.00026301,2]
[313318853,1707144640122,-1343.47,0.00026301,2]
[313318854,1707144640132,-3352.27,0.00026301,2]
[313318855,1707144640143,-569.11,0.00026301,2]
[313318856,1707144640152,-521.9,0.00026301,2]
[313318857,1707144640162,-624.29,0.00026301,2]
[313318858,1707144640171,-1319.76,0.00026301,2]
[313318859,1707144640180,-737.92,0.00026301,2]
[313318860,1707144640191,-500.0,0.00026301,2]
[313318861,1707144640201,-500.0,0.00026301,2]
[313318862,1707144640210,-593.68582154,0.00026301,2]
[313318863,1707144640219,-500.0,0.00026301,2]
[313318864,1707144640229,-1189.62,0.00026301,2]
[313318865,1707144640237,-500.0,0.00026367,2]
[313318866,1707144640246,-500.0,0.00026367,2]
[313318867,1707144640255,-500.0,0.00026367,2]
[313318868,1707144640264,-1961.88,0.00026367,2]
[313318869,1707144640273,-1917.58,0.00026575,2]
[313318870,1707144640282,-1536.79205239,0.00026575,2]
[313318871,1707144641046,-1586.31930013,0.00019368,2]
[313318872,1707144641056,-82.71188018,0.00026575,2]
[313318905,1707144642863,-1829.40905916,0.00026575,2]
[313318906,1707144642874,-3700.83700827,0.00026575,2]
[313318907,1707144642884,-276.08556148,0.00026575,2]
[313318908,1707144642917,-719.90443852,0.00026575,2]
[313318909,1707144642927,-1343.47,0.00026575,2]
[313318910,1707144642936,-3352.27,0.00026575,2]
[313318911,1707144642945,-569.11,0.00026575,2]
[313318912,1707144642955,-521.9,0.00026575,2]
[313318913,1707144642965,-624.29,0.00026575,2]
[313318914,1707144642974,-1319.76,0.00026575,2]
[313318915,1707144642985,-737.92,0.00026575,2]
[313318916,1707144642995,-500.0,0.00026575,2]
[313318917,1707144643005,-500.0,0.00026575,2]
[313318918,1707144643015,-500.0,0.00026575,2]
[313318919,1707144643025,-1189.62,0.00026575,2]
[313318920,1707144643035,-500.0,0.00026641,2]
[313318921,1707144643045,-603.48976415,0.00026641,2]
[313318922,1707144643055,-500.0,0.00026641,2]
[313318923,1707144643065,-1961.88,0.00026641,2]
[313318924,1707144643075,-334.74489026,0.00026776,3]
[313318925,1707144643086,-1917.58,0.00026849,2]
[313318926,1707144643097,-7149.75,0.00026849,2]
[313318927,1707144643110,-995.99,0.00026849,2]
[313318928,1707144643121,-1343.47,0.00026849,2]
[313318929,1707144643130,-3352.27,0.00026849,2]
[313318930,1707144643140,-569.11,0.00026849,2]
[313318931,1707144643150,-521.9,0.00026849,2]
[313318932,1707144643159,-624.29,0.00026849,2]
[313318933,1707144643168,-1319.76,0.00026849,2]
[313318934,1707144643178,-737.92,0.00026849,2]
[313318935,1707144643189,-500.0,0.00026849,2]
[313318936,1707144643201,-500.0,0.00026849,2]
[313318937,1707144643210,-500.0,0.00026849,2]
[313318938,1707144643219,-1189.62,0.00026849,2]
[313318939,1707144643230,-500.0,0.00026915,2]
[313318940,1707144643240,-500.0,0.00026915,2]
[313318941,1707144643250,-1961.88,0.00026915,2]
[313318942,1707144643260,-10000.0,0.0002699,2]
[313318943,1707144643269,-165.42207494,0.00026999,2]
[313318944,1707144643280,-500.0,0.00026999,2]
[313318945,1707144643290,-500.0,0.00026999,2]
[313318946,1707144643300,-500.0,0.00026999,2]
[313318947,1707144643309,-438.73085359,0.00026999,2]
[313318948,1707144643319,-419.82029426,0.00026999,2]
[313318949,1707144643329,-500.0,0.00026999,2]
[313318950,1707144643338,-500.0,0.00026999,2]
[313318951,1707144643348,-500.0,0.00026999,2]
[313318952,1707144643359,-500.0,0.00026999,2]
[313318953,1707144643369,-500.0,0.00026999,2]
[313318954,1707144643379,-500.0,0.00026999,2]
[313318955,1707144643388,-423.56525779,0.00026999,2]
[313318956,1707144643398,-500.0,0.00026999,2]
[313318957,1707144643407,-500.0,0.00026999,2]
[313318958,1707144643416,-500.0,0.00026999,2]
[313318959,1707144643426,-500.0,0.00026999,2]
[313318960,1707144643435,-500.0,0.00026999,2]
[313318961,1707144643445,-500.0,0.00026999,2]
[313318962,1707144643454,-500.0,0.00026999,2]
[313318963,1707144643463,-500.0,0.00026999,2]
[313318964,1707144643474,-322.28270038,0.00026999,2]
[313318965,1707144643486,-500.0,0.00026999,2]
[313318966,1707144643496,-500.0,0.00026999,2]
[313318967,1707144643505,-500.0,0.00026999,2]
[313318968,1707144643514,-500.0,0.00026999,2]
[313318969,1707144643524,-500.0,0.00026999,2]
[313318970,1707144643534,-500.0,0.00026999,2]
[313318971,1707144643544,-351.87769134,0.00026999,2]
[313318972,1707144643554,-215.20963599,0.00026999,2]
[313318973,1707144643565,-500.0,0.00026999,2]
[313318974,1707144643575,-500.0,0.00026999,2]
[313318975,1707144643586,-500.0,0.00026999,2]
[313318976,1707144643595,-500.0,0.00026999,2]
[313318977,1707144643606,-500.0,0.00026999,2]
[313318978,1707144643616,-500.0,0.00026999,2]
[313318979,1707144643626,-500.0,0.00026999,2]
[313318980,1707144643636,-500.0,0.00026999,2]
[313318981,1707144643645,-500.0,0.00026999,2]
[313318982,1707144643655,-500.0,0.00026999,2]
[313318983,1707144643665,-500.0,0.00026999,2]
[313318984,1707144643675,-500.0,0.00026999,2]
[313318985,1707144643684,-500.0,0.00026999,2]
[313318986,1707144643694,-453.95951212,0.00026999,2]
[313318987,1707144643703,-500.0,0.00026999,2]
[313318988,1707144643712,-500.0,0.00026999,2]
[313318989,1707144643723,-500.0,0.00026999,2]
[313318990,1707144643737,-500.0,0.00026999,2]